bitfinex-derivatives/quotes_SOLF0:USTF0_20250731
["timestamp","ask_amount","ask_price","bid_price","bid_amount"]
[1753971679950,2.3,176.23,176.17,3.34]
[1753971680150,2.3,176.2,176.14,3.34]
[1753971681151,5.6773,176.15,176.14,3.34]
[1753971681364,10.05392152,176.21,176.14,3.34]
[1753971681759,5.6773,176.15,176.14,3.34]
[1753971681966,2.3,176.2,176.14,3.34]
[1753971682258,5.6769,176.17,176.07,10.05392152]
[1753971682456,5.6769,176.17,176.08,3.34]
[1753971682655,10.05392152,176.21,176.08,3.34]
[1753971682862,5.6779,176.13,176.1,3.34]
[1753971683063,12.35392152,176.21,176.1,3.34]
[1753971683565,2.3,176.17,176.08,3.34]
[1753971684663,2.3,176.17,176.08,5.6795]
[1753971684859,2.3,176.17,176.09,3.34]
[1753971685161,5.6781,176.13,176.09,3.34]
[1753971685361,2.3,176.17,176.09,3.34]
[1753971685859,2.3,176.17,176.05,3.34]
[1753971686164,2.3,176.14,176.05,3.34]
[1753971686867,12.35392152,176.12,176.05,3.34]
[1753971687067,2.3,176.15,176.07,3.34]
[1753971687365,10.05392152,176.19,176.07,3.34]
[1753971687366,12.36392152,176.19,176.07,3.34]
[1753971687566,2.31,176.18,176.1,3.34]
[1753971687964,12.36392152,176.16,176.1,3.34]
[1753971688162,2.31,176.16,176.1,3.34]
[1753971688368,10.05392152,176.19,176.1,3.34]
[1753971688868,5.6774,176.15,176.11,3.2]
[1753971689071,12.36392152,176.22,176.11,5.6786]
[1753971689271,12.36392152,176.22,176.1,10.05392152]
[1753971689272,4.11039478,176.21,176.12,3.2]
[1753971689457,12.36392152,176.22,176.12,3.2]
[1753971690269,6.42456885,176.21,176.12,3.2]
[1753971690563,2.31,176.21,176.12,3.2]
[1753971690963,5.6765,176.18,176.12,3.2]
[1753971691163,2.31,176.21,176.13,5.6777]
[1753971691364,2.31,176.21,176.11,3.2]
[1753971691758,10.05392152,176.22,176.15,5.6771]
[1753971691960,383.81,176.24,176.16,3.2]
[1753971692160,10.05392152,176.25,176.16,3.2]
[1753971692457,10.05392152,176.25,176.14,3.2]
[1753971692656,5.675,176.23,176.14,3.2]
[1753971692860,10.05392152,176.25,176.17,5.6763]
[1753971693059,10.05392152,176.25,176.18,3.2]
[1753971693261,2.31,176.21,176.11,3.2]
[1753971693663,10.05392152,176.22,176.11,3.2]
[1753971693871,6.43398337,176.21,176.11,3.2]
[1753971694069,4.12398337,176.2,176.11,3.2]
[1753971694265,5.6768,176.17,176.11,3.2]
[1753971694571,2.31,176.21,176.11,3.2]
[1753971694770,2.31,176.18,176.11,3.2]
[1753971695268,2.31,176.21,176.11,3.2]
[1753971695464,2.31,176.15,176.01,3.2]
[1753971695662,2.31,176.15,176.03,3.2]
[1753971695865,10.05392152,176.13,176.03,3.2]
[1753971696164,2.31,176.09,176.0,0.02]
[1753971696366,2.31,176.06,176.0,0.02]
[1753971696674,7.9918,176.01,176.0,0.02]
[1753971697165,5.6818,176.01,176.0,3.22]
[1753971697571,5.6818,176.01,176.0,0.02]
[1753971697866,2.31,176.05,176.0,3.22]
[1753971698067,10.05392152,176.07,176.02,3.2]
[1753971698273,10.05392152,176.07,176.0,3.22]
[1753971698568,5.6818,176.01,176.0,3.22]
[1753971699166,2.31,176.04,176.0,0.02]
[1753971699371,12.36392152,176.06,176.0,0.02]
[1753971699570,2.31,176.06,176.0,3.22]
[1753971699968,5.6814,176.03,176.0,0.02]
[1753971700274,10.05392152,176.04,176.0,0.02]
[1753971700475,5.6818,176.01,176.0,0.02]
[1753971701077,15.73572152,176.01,176.0,0.02]
[1753971701375,18.04572152,176.01,176.0,0.02]
[1753971701573,10.05392152,176.01,175.89,3.85301445]
[1753971701763,2.29,175.99,175.92,3.2]
[1753971701967,12.34392152,175.98,175.9,3.2]
[1753971702167,12.34392152,175.98,175.92,3.2]
[1753971702373,10.05392152,175.98,175.92,3.2]
[1753971702573,12.34392152,176.01,175.92,3.2]
[1753971703072,12.34392152,176.01,175.92,8.8844]
[1753971703273,12.34392152,176.01,175.93,3.2]
[1753971703468,381.7,176.09,175.9,3.2]
[1753971703469,12.34392152,175.98,175.9,3.2]
[1753971704270,5.6834,175.97,175.92,5.6845]
[1753971704474,12.34392152,176.04,175.93,3.2]
[1753971704665,10.05392152,176.04,175.93,3.2]
[1753971704865,2.29,176.15,176.0,10.05392152]
[1753971705068,10.05392152,176.28,176.04,13.25392152]
[1753971705069,10.05392152,176.16,176.04,13.25392152]
[1753971705274,5.678,176.13,176.05,3.2]
[1753971705477,2.29,176.18,176.05,3.2]
[1753971705776,5.6792,176.1,176.07,3.2]
[1753971705977,12.34392152,176.16,176.08,3.2]
[1753971706278,2.29,176.16,176.08,3.2]
[1753971706475,2.29,176.18,176.08,3.2]
[1753971706878,2.29,176.18,176.08,8.8794]
[1753971707080,2.29,176.18,176.08,3.2]
[1753971707680,10.05392152,176.14,175.95,3.2]
[1753971707876,5.679,176.1,176.06,5.6802]
[1753971708077,10.05392152,176.17,176.08,3.2]
[1753971708474,5.6788,176.11,176.07,10.05392152]
[1753971708674,10.05392152,176.17,176.08,3.2]
[1753971709077,2.29,176.16,176.08,3.2]
[1753971709581,2.29,176.16,175.94,398.79]
[1753971709582,2.29,176.1,176.02,3.2]
[1753971710075,2.29,176.14,176.03,3.2]
[1753971710276,12.34392152,176.14,176.03,3.2]
[1753971710583,12.34392152,176.11,176.03,3.2]
[1753971710770,10.05392152,176.11,176.03,3.2]
[1753971711174,5.6804,176.06,176.03,3.2]
[1753971711373,12.34392152,176.11,176.03,3.2]
[1753971711577,12.34392152,176.11,176.0,5.6818]
[1753971711878,10.05392152,176.13,176.02,3.2]
[1753971712479,2.29,176.14,176.02,3.2]
[1753971712679,12.34392152,176.14,176.02,8.8814]
[1753971712979,12.34392152,176.14,176.02,3.2]
[1753971713175,10.05392152,176.14,176.02,3.2]
[1753971713377,12.34392152,176.11,176.02,3.2]
[1753971713676,10.05392152,176.08,176.02,3.2]
[1753971713875,5.6811,176.03,176.02,3.2]
[1753971714881,5.6811,176.03,175.96,10.05392152]
[1753971714882,10.05392152,176.05,175.95,3.2]
[1753971715282,5.6827,175.99,175.95,3.2]
[1753971715477,10.05392152,176.05,175.95,3.2]
[1753971715688,10.05392152,176.05,175.95,8.8836]
[1753971715981,10.05392152,176.05,175.96,3.2]
[1753971716171,10.05392152,176.05,175.96,8.8831]
[1753971716374,5.6811,176.04,175.97,3.2]
[1753971716577,10.05392152,176.08,175.97,3.2]
[1753971716778,10.05392152,176.08,175.98,5.6825]
[1753971716984,5.6811,176.03,175.97,3.2]
[1753971717186,2.29,176.1,175.97,3.2]
[1753971717388,12.34392152,176.1,176.0,3.2]
[1753971717780,12.34392152,176.1,176.01,5.6817]
[1753971717978,12.34392152,176.13,176.02,3.2]
[1753971718176,10.05392152,176.1,176.02,3.2]
[1753971718379,2.29,176.19,176.01,10.05392152]
[1753971718680,2.29,176.14,176.03,13.10392152]
[1753971718874,2.29,176.14,176.06,13.10392152]
[1753971719074,381.8,176.17,176.13,10.05392152]
[1753971719281,351.0,176.46,176.17,3.05]
[1753971719282,1646.6043,176.32,176.17,3.05]
[1753971719484,606.42,176.31,176.2,10.05392152]
[1753971719779,10.05392152,176.3,176.2,10.05392152]
[1753971719979,606.42,176.31,176.19,3.05]
[1753971720186,10.05392152,176.24,176.11,3.05]
[1753971720378,10.05392152,176.21,176.11,3.05]
[1753971720574,10.05392152,176.21,176.1,10.05392152]
[1753971720575,10.05392152,176.18,176.08,3.05]
[1753971720785,10.05392152,176.15,176.08,3.05]
[1753971721186,10.05392152,176.12,176.02,3.05]
[1753971721380,225.04,176.11,176.02,13.10392152]
[1753971721581,5.6801,176.07,176.02,10.05392152]
[1753971721782,225.04,176.11,176.03,3.05]
[1753971722680,5.6799,176.07,176.03,3.05]
[1753971722875,5.6799,176.07,175.99,10.05392152]
[1753971723084,225.04,176.11,176.02,10.05392152]
[1753971723287,225.04,176.11,176.03,3.05]
[1753971723485,10.05392152,176.09,176.03,3.05]
[1753971723782,5.6799,176.07,176.03,3.05]
[1753971723983,5.6799,176.07,176.04,3.05]
[1753971724284,225.04,176.11,176.05,3.05]
[1753971724681,225.04,176.11,176.06,3.05]
[1753971724977,225.04,176.11,176.07,3.05]
[1753971725174,225.04,176.11,176.04,3.05]
[1753971725984,230.7186,176.11,176.05,5.6803]
[1753971726184,225.04,176.11,176.02,10.05392152]
[1753971726386,225.04,176.11,176.08,3.05]
[1753971726586,3.05,176.09,175.96,10.05392152]
[1753971726879,3.05,176.06,175.93,10.05392152]
[1753971727285,13.10392152,176.1,175.96,10.05392152]
[1753971727483,3.05,176.1,175.96,10.05392152]
[1753971727684,3.05,176.09,175.96,10.05392152]
[1753971728187,225.04,176.11,175.99,10.05392152]
[1753971728585,230.7186,176.11,176.05,5.6803]
[1753971729081,225.04,176.11,176.04,3.05]
[1753971729483,3.05,176.08,176.04,3.05]
[1753971729683,10.05392152,176.06,176.01,3.05]
[1753971729883,3.05,176.05,176.01,3.05]
[1753971730282,3.05,176.05,176.02,5.6812]
[1753971730685,3.05,176.05,176.01,3.05]
[1753971730887,3.05,176.05,176.03,5.6809]
[1753971731185,3.05,176.05,176.01,3.05]
[1753971731485,3.05,176.01,175.94,3.05]
[1753971731687,3.05,175.98,175.94,3.05]
[1753971731882,10.05392152,176.0,175.94,3.05]
[1753971731883,3.05,175.97,175.94,3.05]
[1753971732486,3.05,175.97,175.96,5.6834]
[1753971732690,13.10392152,176.0,175.94,3.05]
[1753971733393,3.05,175.99,175.94,3.05]
[1753971733691,3.05,175.98,175.94,3.05]
[1753971733989,10.05392152,176.0,175.9,3.05]
[1753971734380,136.85,176.01,175.9,3.05]
[1753971734787,3.05,176.04,176.01,3.05]
[1753971735180,10.05392152,176.04,175.93,3.05]
[1753971735387,13.10392152,176.04,175.93,3.05]
[1753971735883,225.22,176.23,176.04,3.05]
[1753971736087,13.10392152,176.19,176.08,3.05]
[1753971736284,226.32,176.18,176.1,10.05392152]
[1753971736494,3.05,176.17,176.11,3.05]
[1753971736787,3.05,176.16,176.08,3.05]
[1753971736991,3.05,176.14,176.08,3.05]
[1753971737188,3.05,176.14,176.04,10.05392152]
[1753971737494,3.05,176.12,176.05,3.05]
[1753971737687,226.28,176.11,176.05,3.05]
[1753971737988,3.05,176.1,175.99,10.05392152]
[1753971738187,3.05,176.1,176.02,3.05]
[1753971738390,3.05,176.1,176.0,3.05]
[1753971739189,3.05,176.1,176.02,3.05]
[1753971739390,236.33392152,176.11,176.02,3.05]
[1753971739591,226.28,176.11,176.03,3.05]
[1753971739891,3.05,176.08,175.96,3.05]
[1753971740287,3.05,176.06,176.0,5.6818]
[1753971740490,3.05,176.04,175.98,3.05]
[1753971741391,227.02,176.05,176.02,3.05]
[1753971742390,227.02,176.05,175.92,10.05392152]
[1753971742591,227.02,176.05,176.02,3.05]
[1753971743095,192.6,176.1,176.02,3.05]
[1753971743300,192.6,176.1,176.04,3.05]
[1753971743602,171.26,176.13,176.07,3.05]
[1753971743785,3.05,176.2,176.1,3.05]
[1753971743985,3.05,176.2,176.06,10.05392152]
[1753971743986,10.05392152,176.19,176.06,10.05392152]
[1753971744292,3.05,176.18,176.07,3.05]
[1753971745096,3.05,176.17,176.07,3.05]
[1753971745798,10.05392152,176.16,176.07,3.05]
[1753971746300,131.1,176.23,176.14,3.05]
[1753971746601,139.8247,176.23,176.17,5.6764]
[1753971746790,134.15,176.23,176.14,3.05]
[1753971747187,10.05392152,176.21,176.12,3.05]
[1753971747388,3.05,176.17,176.12,3.05]
[1753971747594,3.05,176.17,176.08,3.05]
[1753971747801,3.05,176.16,176.1,3.05]
[1753971748294,3.05,176.16,176.14,5.6774]
[1753971748493,13.10392152,176.2,176.11,3.08]
[1753971748693,3.05,176.2,176.19,5.676]
[1753971748999,3.05,176.22,176.16,3.08]
[1753971749201,13.10392152,176.22,176.17,5.6764]
[1753971749501,15.72912152,176.22,176.08,10.05392152]
[1753971749701,3.05,176.21,176.09,3.08]
[1753971749890,3.05,176.2,176.16,5.6767]
[1753971750197,3.05,176.19,176.13,3.08]
[1753971751095,126.30392152,176.22,176.13,3.08]
[1753971751294,123.25392152,176.22,176.13,3.08]
[1753971751497,3.05,176.21,176.13,3.08]
[1753971751898,3.05,176.2,176.16,5.6769]
[1753971752095,123.19392152,176.25,176.14,3.08]
[1753971752298,10.05392152,176.18,176.08,3.08]
[1753971752500,13.10392152,176.18,176.08,3.08]
[1753971752701,3.05,176.18,176.08,3.08]
[1753971752900,3.05,176.18,176.16,5.6768]
[1753971753405,3.05,176.18,176.06,11.3599]
[1753971753406,3.05,176.21,176.19,5.6758]
[1753971753702,3.05,176.21,176.11,3.08]
[1753971753893,3.05,176.21,176.1,10.05392152]
[1753971753894,3.05,176.16,176.12,5.6781]
[1753971754100,3.05,176.16,176.04,3.08]
[1753971754292,3.05,176.16,176.06,10.05392152]
[1753971754495,3.05,176.15,176.09,3.08]
[1753971754692,3.05,176.15,176.06,3.08]
[1753971755093,3.05,176.15,176.07,3.08]
[1753971755290,123.27392152,176.18,176.07,3.08]
[1753971755603,3.05,176.18,176.07,3.08]
[1753971756098,3.05,176.16,176.07,3.08]
[1753971756499,3.05,176.16,176.13,5.6779]
[1753971756802,10.05392152,176.17,176.06,3.08]
[1753971757097,5.678,176.13,176.08,5.6793]
[1753971757300,10.05392152,176.11,176.03,3.08]
[1753971757498,10.05392152,176.13,176.03,3.08]
[1753971758000,381.62,176.19,176.03,3.08]
[1753971758001,113.14,176.15,176.03,3.08]
[1753971758201,113.14,176.15,176.08,3.08]
[1753971758397,10.05392152,176.13,175.94,30.94740186]
[1753971758599,10.05392152,176.1,175.97,3.08]
[1753971758800,12.52392152,176.09,175.97,3.08]
[1753971759196,10.05392152,176.09,175.97,3.08]
[1753971759506,2.47,176.08,175.97,3.08]
[1753971759700,2.47,176.1,176.05,5.6805]
[1753971759895,2.47,176.1,176.03,3.08]
[1753971760298,2.47,176.1,175.94,30.94740186]
[1753971760299,2.47,176.07,175.98,3.08]
[1753971760805,114.68,176.13,175.91,381.62]
[1753971761004,114.68,176.13,175.88,125.172]
[1753971761005,12.52392152,176.03,175.92,3.08]
[1753971761201,2.47,176.03,176.0,5.6819]
[1753971761398,10.05392152,176.16,176.0,3.08]
[1753971761399,10.05392152,176.08,176.0,3.08]
[1753971761594,2.47,176.07,176.0,3.08]
[1753971761798,12.52392152,176.08,175.94,10.05392152]
[1753971761999,12.52392152,176.08,175.95,3.08]
[1753971762193,2.47,176.04,175.89,6.93301445]
[1753971762403,2.47,176.01,175.93,3.08]
[1753971762896,2.47,176.01,175.92,3.08]
[1753971763401,2.47,176.03,175.92,3.08]
[1753971763807,2.47,176.03,176.0,5.6819]
[1753971764004,2.47,176.06,175.93,10.05392152]
[1753971764197,2.47,176.06,175.89,3.85301445]
[1753971764198,2.47,176.06,175.94,3.08]
[1753971764399,2.47,176.06,175.95,10.05392152]
[1753971764601,12.52392152,176.09,175.98,10.05392152]
[1753971764797,12.52392152,176.09,175.99,3.08]
[1753971764999,2.47,176.08,176.01,3.08]
[1753971765201,2.47,176.05,175.97,3.08]
[1753971766201,2.47,176.01,175.92,3.08]
[1753971766403,12.52392152,176.04,175.92,3.08]
[1753971766601,2.47,176.04,176.0,5.6821]
[1753971766907,12.52392152,176.06,175.95,3.08]
[1753971767701,2.47,176.06,175.95,3.08]
[1753971767907,2.47,176.05,175.99,3.08]
[1753971768111,2.47,176.05,175.98,3.08]
[1753971768311,2.47,176.02,175.93,3.08]
[1753971768914,2.47,176.0,175.9,3.08]
[1753971769209,2.47,175.95,175.89,3.85301445]
[1753971769400,4.68973931,176.08,175.95,5.6837]
[1753971769401,10.05392152,175.98,175.95,5.6837]
[1753971769600,12.52392152,175.98,175.92,3.08]
[1753971770009,2.47,176.08,175.9,3.08]
[1753971770213,2.47,176.04,175.89,3.85301445]
[1753971770404,10.05392152,176.02,175.96,5.6833]
[1753971770607,2.47,176.01,175.94,3.08]
[1753971771203,10.05392152,176.02,175.94,3.08]
[1753971771410,2.47,175.98,175.9,3.08]
[1753971772202,2.47,176.06,175.9,3.08]
[1753971772407,2.47,176.01,175.91,3.08]
[1753971773512,2.47,175.99,175.91,3.08]
[1753971773814,2.47,175.99,175.9,8.7651]
[1753971774018,10.05392152,175.97,175.9,8.7651]
[1753971774311,10.05392152,175.97,175.89,3.85301445]
[1753971774312,8.1535,175.96,175.92,5.6847]
[1753971774609,115.62,176.07,175.96,3.08]
[1753971774610,2.47,176.07,175.96,3.08]
[1753971774813,5.681,176.04,175.91,10.05392152]
[1753971775109,2.47,176.05,175.95,3.08]
[1753971775414,2.47,176.13,176.03,3.08]
[1753971775603,233.72,176.12,176.03,3.08]
[1753971775808,2.47,176.11,176.03,3.08]
[1753971776107,233.72,176.12,176.03,3.08]
[1753971776513,8.1487,176.11,176.07,3.08]
[1753971776708,233.72,176.12,176.03,3.08]
[1753971777007,10.05392152,176.09,175.94,3.08]
[1753971777202,152.12436184,176.09,175.99,10.05392152]
[1753971777400,152.12436184,176.09,176.0,220.93319165]
[1753971777607,152.12436184,176.09,176.01,3.08]
[1753971778406,152.12436184,176.09,176.03,3.25]
[1753971778711,233.72,176.12,176.09,3.25]
[1753971779109,233.72,176.12,176.1,5.6789]
[1753971779612,233.72,176.12,176.03,3.25]
[1753971779812,233.72,176.12,176.05,10.05392152]
[1753971780014,233.72,176.12,176.06,3.25]
[1753971780215,2.47,176.16,176.11,3.25]
[1753971780410,2.47,176.16,176.01,11.3634]
[1753971780411,381.92,176.17,176.09,3.25]
[1753971780715,381.92,176.17,176.14,5.6776]
[1753971780910,163.4,176.21,176.12,3.25]
[1753971781108,163.4,176.21,176.15,3.25]
[1753971781309,163.4,176.21,176.2,5.6757]
[1753971781607,163.4,176.21,176.08,3.25]
[1753971781811,163.4,176.21,176.2,5.6757]
[1753971782012,163.4,176.21,176.2,8.9257]
[1753971782922,2.47,176.29,176.22,3.25]
[1753971783116,119.37,176.29,176.22,3.25]
[1753971783510,2.47,176.28,176.22,3.25]
[1753971783812,2.47,176.31,176.22,3.25]
[1753971784018,119.31,176.29,176.25,5.6738]
[1753971784220,116.8,176.29,176.23,3.25]
[1753971784616,116.78,176.3,176.23,3.25]
[1753971785122,2.47,176.31,176.23,3.25]
[1753971785320,151.55218498,176.34,176.24,3.25]
[1753971785522,116.68,176.33,176.27,5.6732]
[1753971785714,157.22358498,176.34,176.24,3.25]
[1753971785920,116.64,176.33,176.24,3.25]
[1753971786119,2.47,176.32,176.24,3.25]
[1753971786624,2.47,176.39,176.3,3.25]
[1753971786824,2.47,176.39,176.32,10.05392152]
[1753971787019,8.138,176.44,176.37,5.67]
[1753971787219,116.58,176.43,176.36,3.25]
[1753971787424,2.47,176.41,176.32,3.25]
[1753971787622,116.58,176.43,176.29,3.25]
[1753971787623,2.47,176.38,176.29,3.25]
[1753971788120,116.58,176.37,176.29,3.25]
[1753971788523,2.47,176.36,176.29,3.25]
[1753971788718,2.47,176.39,176.3,3.25]
[1753971788921,2.47,176.43,176.33,3.25]
[1753971789122,2.47,176.43,176.36,3.25]
[1753971789320,2.47,176.43,176.37,5.67]
[1753971789622,116.46,176.44,176.38,3.25]
[1753971789818,10.05392152,176.44,176.33,3.25]
[1753971790023,10.05392152,176.38,176.27,3.25]
[1753971790219,2.47,176.36,176.27,3.25]
[1753971790425,2.47,176.34,176.28,5.6731]
[1753971790624,2.47,176.34,176.27,3.25]
[1753971790820,118.87,176.37,176.27,3.25]
[1753971791021,5.6715,176.34,176.27,8.9234]
[1753971791229,2.47,176.36,176.27,3.25]
[1753971791416,116.4,176.37,176.28,3.25]
[1753971791823,2.47,176.35,176.27,3.25]
[1753971792421,5.6719,176.32,176.28,3.25]
[1753971792621,2.47,176.34,176.24,3.25]
[1753971793028,5.6717,176.33,176.24,3.25]
[1753971793227,2.47,176.38,176.27,3.25]
[1753971793422,2.47,176.38,176.28,5.6731]
[1753971793423,10.05392152,176.37,176.28,5.6731]
[1753971793626,2.47,176.36,176.27,3.25]
[1753971794129,5.6718,176.33,176.27,8.9232]
[1753971794332,2.47,176.34,176.27,3.25]
[1753971794629,2.47,176.35,176.27,3.25]
[1753971796132,5.6716,176.33,176.28,5.6729]
[1753971796333,8.1416,176.33,176.29,3.25]
[1753971796530,8.1416,176.33,176.3,3.25]
[1753971796830,2.47,176.33,176.3,3.25]
[1753971797130,2.47,176.33,176.23,10.05392152]
[1753971797327,2.47,176.32,176.27,5.6732]
[1753971797531,2.47,176.32,176.28,3.25]
[1753971797731,2.47,176.31,176.24,3.25]
[1753971798132,2.47,176.31,176.21,3.25]
[1753971798532,5.6727,176.3,176.25,5.674]
[1753971798831,2.47,176.31,176.26,3.25]
[1753971799327,2.47,176.34,176.23,10.05392152]
[1753971799525,2.47,176.34,176.26,10.05392152]
[1753971799725,10.05392152,176.39,176.27,3.25]
[1753971799924,118.33,176.38,176.27,3.25]
[1753971800526,2.47,176.36,176.27,3.25]
[1753971801234,118.31,176.36,176.27,3.25]
[1753971801834,2.47,176.42,176.32,10.05392152]
[1753971802033,2.47,176.4,176.33,3.25]
[1753971802230,2.47,176.4,176.3,3.25]
[1753971802535,2.47,176.37,176.3,3.25]
[1753971802931,118.17,176.37,176.27,3.25]
[1753971803132,5.6718,176.33,176.27,3.25]
[1753971803334,2.47,176.39,176.29,10.05392152]
[1753971803539,2.47,176.39,176.3,3.25]
[1753971803933,2.47,176.38,176.3,3.25]
[1753971804134,115.68,176.4,176.3,3.25]
[1753971804340,115.66,176.39,176.3,3.25]
[1753971804540,2.47,176.41,176.3,3.25]
[1753971804742,5.6696,176.4,176.36,5.6704]
[1753971804942,118.07,176.45,176.37,3.25]
[1753971805241,5.6693,176.4,176.37,3.25]
[1753971805438,2.47,176.39,176.25,10.05392152]
[1753971805636,10.05392152,176.4,176.28,10.05392152]
[1753971805940,10.05392152,176.4,176.26,3.25]
[1753971805941,115.74,176.41,176.38,3.25]
[1753971806137,10.05392152,176.43,176.38,3.25]
[1753971806338,5.6687,176.42,176.34,10.05392152]
[1753971806541,5.6687,176.42,176.35,3.25]
[1753971806944,5.6684,176.43,176.39,5.6695]
[1753971807145,2.47,176.44,176.35,3.25]
[1753971807445,5.6693,176.4,176.37,5.6702]
[1753971807637,2.47,176.39,176.35,3.25]
[1753971807838,2.47,176.42,176.32,3.25]
[1753971808036,2.47,176.42,176.35,5.6709]
[1753971808237,2.47,176.42,176.32,3.25]
[1753971808547,2.47,176.42,176.34,5.6711]
[1753971808846,115.64,176.42,176.35,3.25]
[1753971809045,5.67,176.38,176.35,8.9207]
[1753971809242,10.05392152,176.41,176.31,10.05392152]
[1753971809545,2.47,176.4,176.32,3.25]
[1753971809742,5.67,176.38,176.35,3.25]
[1753971809948,5.67,176.38,176.36,3.25]
[1753971810441,5.6697,176.39,176.36,3.25]
[1753971810652,118.21,176.41,176.37,3.25]
[1753971810839,2.47,176.4,176.33,3.25]
[1753971811544,12.52392152,176.43,176.33,3.25]
[1753971811745,115.62,176.4,176.33,3.25]
[1753971811951,8.1409,176.36,176.33,3.25]
[1753971812147,2.47,176.36,176.33,3.25]
[1753971812346,10.05392152,176.37,176.27,3.25]
[1753971812549,10.05392152,176.37,176.3,3.25]
[1753971812845,6.6083967,176.35,176.3,219.72473028]
[1753971813048,9.0783967,176.33,176.3,219.72473028]
[1753971813848,8.1422,176.31,176.3,219.72473028]
[1753971814047,9.0783967,176.31,176.26,3.25]
[1753971814245,5.6735,176.27,176.23,3.25]
[1753971814450,2.47,176.3,176.24,3.25]
[1753971814953,10.04750245,176.31,176.19,3.25]
[1753971815155,125.42750245,176.31,176.19,13.29750245]
[1753971815354,2.47,176.33,176.2,3.25]
[1753971815657,115.42,176.32,176.26,3.25]
[1753971815957,5.6731,176.29,176.26,3.25]
[1753971816149,5.6731,176.29,176.24,5.6743]
[1753971816352,2.47,176.31,176.27,3.25]
[1753971816553,5.6726,176.3,176.26,3.25]
[1753971816851,12.51750245,176.34,176.26,3.25]
[1753971817058,115.3,176.33,176.23,3.25]
[1753971817360,2.47,176.32,176.23,3.25]
[1753971817555,2.47,176.3,176.24,3.25]
[1753971817755,2.47,176.27,176.21,3.25]
[1753971818258,2.47,176.27,176.16,29.64625863]
[1753971818259,2.47,176.27,176.22,3.25]
[1753971818457,2.47,176.26,176.23,3.25]
[1753971818653,164.75865767,176.35,176.16,29.64625863]
[1753971818850,2.47,176.3,176.2,3.25]
[1753971819057,2.47,176.28,176.2,3.25]
[1753971819353,6.57882622,176.27,176.17,3.25]
[1753971819557,4.10882622,176.26,176.17,3.25]
[1753971819857,2.47,176.27,176.17,3.25]
[1753971820051,5.6747,176.24,176.19,5.6759]
[1753971820356,117.59,176.27,176.21,3.25]
[1753971820657,2.47,176.25,176.21,3.25]
[1753971820858,2.47,176.25,176.22,3.25]
[1753971821354,5.6742,176.25,176.17,3.25]
[1753971821558,117.59,176.27,176.17,3.25]